[Event "*** Titled Tuesday Blitz"]
[Site "Chess.com"]
[Date "2020.01.07"]
[Round "8"]
[White "chessdjw"]
[Black "Region_07"]
[Result "1-0"]
[WhiteElo "2655"]
[BlackElo "2401"]
[TimeControl "180+2"]
[EndTime "14:54:49 PST"]
[Termination "chessdjw won on time"]

1. d4 {[%clk 0:03:01.9]} 1... f5 {[%clk 0:02:56.9]} 2. Nf3 {[%clk 0:03:02]} 2...
Nf6 {[%clk 0:02:56.8]} 3. g3 {[%clk 0:03:03.6]} 3... g6 {[%clk 0:02:56.6]} 4.
Bg2 {[%clk 0:03:05.3]} 4... Bg7 {[%clk 0:02:58.2]} 5. O-O {[%clk 0:03:07]} 5...
O-O {[%clk 0:02:59.7]} 6. c4 {[%clk 0:03:08.6]} 6... d6 {[%clk 0:03:01.2]} 7.
Nc3 {[%clk 0:03:10.3]} 7... c6 {[%clk 0:03:02]} 8. b3 {[%clk 0:03:10.9]} 8...
Na6 {[%clk 0:03:02.3]} 9. Bb2 {[%clk 0:03:11.3]} 9... Qc7 {[%clk 0:02:50.6]} 10.
Rc1 {[%clk 0:03:12.6]} 10... e5 {[%clk 0:02:48.3]} 11. e3 {[%clk 0:02:51.3]}
11... e4 {[%clk 0:02:42.1]} 12. Ne1 {[%clk 0:02:49.7]} 12... Qd8 {[%clk
0:02:19]} 13. Nc2 {[%clk 0:02:50.9]} 13... Nc7 {[%clk 0:02:16.1]} 14. a4 {[%clk
0:02:52.3]} 14... a5 {[%clk 0:02:07.2]} 15. Ba3 {[%clk 0:02:53.7]} 15... Re8
{[%clk 0:02:07.6]} 16. Qd2 {[%clk 0:02:54.2]} 16... d5 {[%clk 0:02:06.6]} 17.
Rfd1 {[%clk 0:02:42.9]} 17... Be6 {[%clk 0:02:04.9]} 18. Qe2 {[%clk 0:02:43.2]}
18... Kh8 {[%clk 0:02:03.1]} 19. Bc5 {[%clk 0:02:42.5]} 19... Qd7 {[%clk
0:01:55.3]} 20. Bb6 {[%clk 0:02:42.8]} 20... Bf7 {[%clk 0:01:39.9]} 21. Na3
{[%clk 0:02:19.3]} 21... Ne6 {[%clk 0:01:28]} 22. cxd5 {[%clk 0:02:15.6]} 22...
Nxd5 {[%clk 0:01:12.8]} 23. Nxd5 {[%clk 0:02:16.5]} 23... Qxd5 {[%clk
0:01:11.5]} 24. Nc4 {[%clk 0:02:17.6]} 24... Ng5 {[%clk 0:00:49.4]} 25. Qe1
{[%clk 0:02:04.8]} 25... Nf3+ {[%clk 0:00:48.1]} 26. Bxf3 {[%clk 0:02:06]} 26...
exf3 {[%clk 0:00:50]} 27. Bxa5 {[%clk 0:02:07.1]} 27... f4 {[%clk 0:00:45.1]}
28. Bd2 {[%clk 0:01:40.7]} 28... Qh5 {[%clk 0:00:39.4]} 29. Nd6 {[%clk
0:01:26.7]} 29... Be6 {[%clk 0:00:36.7]} 30. Nxe8 {[%clk 0:01:20.6]} 30... Rxe8
{[%clk 0:00:33.2]} 31. exf4 {[%clk 0:01:11]} 31... Bf7 {[%clk 0:00:24.8]} 32.
Qf1 {[%clk 0:01:02.4]} 32... Bxb3 {[%clk 0:00:21.5]} 33. Re1 {[%clk 0:01:03.9]}
33... Re2 {[%clk 0:00:21.3]} 34. Be3 {[%clk 0:00:45.5]} 34... Bxa4 {[%clk
0:00:18.5]} 35. h4 {[%clk 0:00:44]} 35... Bb5 {[%clk 0:00:18.3]} 36. Qh3 {[%clk
0:00:44.4]} 36... h6 {[%clk 0:00:14.6]} 37. Ra1 {[%clk 0:00:28.3]} 37... Kh7
{[%clk 0:00:14]} 38. Qd7 {[%clk 0:00:27.1]} 38... Rxe1+ {[%clk 0:00:11.5]} 39.
Rxe1 {[%clk 0:00:27.3]} 39... Bc4 {[%clk 0:00:08.4]} 40. Rb1 {[%clk 0:00:21.6]}
40... b5 {[%clk 0:00:08.4]} 41. Ra1 {[%clk 0:00:23.1]} 41... Bd5 {[%clk
0:00:07.3]} 42. Ra7 {[%clk 0:00:23.4]} 1-0

[Event "*** Titled Tuesday Blitz"]
[Site "Chess.com"]
[Date "2020.01.07"]
[Round "8"]
[White "davigator"]
[Black "CzechmVIII"]
[Result "1-0"]
[WhiteElo "2330"]
[BlackElo "2173"]
[TimeControl "180+2"]
[EndTime "14:54:56 PST"]
[Termination "davigator won on time"]

1. e4 {[%clk 0:03:01.9]} 1... c5 {[%clk 0:03:00.8]} 2. Nf3 {[%clk 0:03:02.3]}
2... d6 {[%clk 0:03:01.8]} 3. d4 {[%clk 0:03:02.9]} 3... cxd4 {[%clk 0:03:03.7]}
4. Nxd4 {[%clk 0:03:04.2]} 4... Nf6 {[%clk 0:03:04.6]} 5. Nc3 {[%clk 0:03:04.6]}
5... g6 {[%clk 0:03:05.8]} 6. Be3 {[%clk 0:03:04.6]} 6... Bg7 {[%clk 0:03:06.6]}
7. f3 {[%clk 0:03:05.4]} 7... O-O {[%clk 0:03:07.6]} 8. Qd2 {[%clk 0:03:06.6]}
8... Nc6 {[%clk 0:03:08.6]} 9. g4 {[%clk 0:03:07.3]} 9... Be6 {[%clk 0:03:06.7]}
10. Nxe6 {[%clk 0:03:07.6]} 10... fxe6 {[%clk 0:03:08.4]} 11. Bc4 {[%clk
0:03:09.2]} 11... Qc8 {[%clk 0:02:51.5]} 12. O-O-O {[%clk 0:03:02.3]} 12... Ne5
{[%clk 0:02:46.1]} 13. Be2 {[%clk 0:03:02.8]} 13... Nc4 {[%clk 0:02:36.2]} 14.
Qd3 {[%clk 0:03:03.2]} 14... Nxe3 {[%clk 0:02:31.4]} 15. Qxe3 {[%clk 0:03:03.7]}
15... Nd7 {[%clk 0:02:26.4]} 16. Na4 {[%clk 0:02:44.8]} 16... Ne5 {[%clk
0:02:01.2]} 17. b3 {[%clk 0:02:39.9]} 17... Qc6 {[%clk 0:01:29.1]} 18. Kb1
{[%clk 0:02:32.7]} 18... b5 {[%clk 0:01:11.7]} 19. Nb2 {[%clk 0:02:32.7]} 19...
Rac8 {[%clk 0:01:06.1]} 20. Rc1 {[%clk 0:02:31.7]} 20... b4 {[%clk 0:00:57.8]}
21. Nc4 {[%clk 0:02:28.4]} 21... Nxc4 {[%clk 0:00:47.3]} 22. Bxc4 {[%clk
0:02:28.8]} 22... d5 {[%clk 0:00:46.6]} 23. exd5 {[%clk 0:02:28.2]} 23... exd5
{[%clk 0:00:47.1]} 24. Be2 {[%clk 0:02:29.5]} 24... Qf6 {[%clk 0:00:45.1]} 25.
c3 {[%clk 0:02:30.2]} 25... Rxc3 {[%clk 0:00:38.6]} 26. Rxc3 {[%clk 0:02:30.8]}
26... bxc3 {[%clk 0:00:37.8]} 27. Kc2 {[%clk 0:02:31]} 27... d4 {[%clk
0:00:30.2]} 28. Qe4 {[%clk 0:02:30.2]} 28... e5 {[%clk 0:00:23.8]} 29. h4 {[%clk
0:02:16.8]} 29... Rd8 {[%clk 0:00:20.8]} 30. Bc4+ {[%clk 0:02:13.1]} 30... Kf8
{[%clk 0:00:19.4]} 31. h5 {[%clk 0:02:06]} 31... Qf4 {[%clk 0:00:19.4]} 32.
Qxf4+ {[%clk 0:02:05.1]} 32... exf4 {[%clk 0:00:20.4]} 33. hxg6 {[%clk 0:02:07]}
33... hxg6 {[%clk 0:00:21.9]} 34. Re1 {[%clk 0:02:07]} 34... Re8 {[%clk
0:00:22.8]} 35. Rxe8+ {[%clk 0:02:01.5]} 35... Kxe8 {[%clk 0:00:24]} 36. Kd3
{[%clk 0:02:03.2]} 36... Ke7 {[%clk 0:00:22.1]} 37. b4 {[%clk 0:02:04.2]} 37...
g5 {[%clk 0:00:21.4]} 38. a4 {[%clk 0:02:04.2]} 38... Kd6 {[%clk 0:00:22.5]} 39.
Bf7 {[%clk 0:02:02.3]} 39... Ke5 {[%clk 0:00:21.8]} 40. Bg6 {[%clk 0:02:00.9]}
40... Bf8 {[%clk 0:00:22.7]} 41. b5 {[%clk 0:02:01.7]} 41... Bb4 {[%clk
0:00:21.2]} 42. Bf7 {[%clk 0:02:01.6]} 42... Ba5 {[%clk 0:00:21.3]} 43. Bb3
{[%clk 0:02:00.4]} 43... Bb6 {[%clk 0:00:22.4]} 44. Bc2 {[%clk 0:02:00.8]} 44...
Ba5 {[%clk 0:00:23.5]} 45. Kc4 {[%clk 0:02:01.8]} 45... Bb6 {[%clk 0:00:24.2]}
46. Kb4 {[%clk 0:02:02.3]} 46... Bd8 {[%clk 0:00:23]} 47. a5 {[%clk 0:02:02.7]}
47... Be7+ {[%clk 0:00:21.3]} 48. Kc4 {[%clk 0:02:03.3]} 48... Bd8 {[%clk
0:00:22.6]} 49. Kb4 {[%clk 0:02:04.1]} 49... Be7+ {[%clk 0:00:21.2]} 50. Ka4
{[%clk 0:02:04.9]} 50... Bd8 {[%clk 0:00:21.6]} 51. Bd3 {[%clk 0:02:05.3]} 51...
Kd6 {[%clk 0:00:20.2]} 52. Kb4 {[%clk 0:02:05.9]} 52... Kc7 {[%clk 0:00:19.6]}
53. Kc5 {[%clk 0:02:06.2]} 53... Bf6 {[%clk 0:00:20]} 54. Be4 {[%clk 0:02:05.4]}
54... Bg7 {[%clk 0:00:18.9]} 55. b6+ {[%clk 0:02:06.1]} 55... axb6+ {[%clk
0:00:20]} 56. axb6+ {[%clk 0:02:07.7]} 56... Kb8 {[%clk 0:00:21.2]} 57. Kd6
{[%clk 0:02:08.8]} 57... Bh8 {[%clk 0:00:22.4]} 58. Ke6 {[%clk 0:02:08.8]} 58...
Bg7 {[%clk 0:00:21.7]} 59. Kf5 {[%clk 0:02:09.1]} 59... Bf8 {[%clk 0:00:22.8]}
60. Kxg5 {[%clk 0:02:09.1]} 60... Bd6 {[%clk 0:00:22.1]} 61. Kf6 {[%clk
0:02:08.6]} 61... Bc5 {[%clk 0:00:23.6]} 62. g5 {[%clk 0:02:09.1]} 62... Bxb6
{[%clk 0:00:25.2]} 63. g6 {[%clk 0:02:11]} 63... Bd8+ {[%clk 0:00:26.5]} 64. Kf7
{[%clk 0:02:10.3]} 1-0

[Event "*** Titled Tuesday Blitz"]
[Site "Chess.com"]
[Date "2020.01.07"]
[Round "8"]
[White "Ar4uha"]
[Black "Gnechko_Ruslan"]
[Result "1/2-1/2"]
[WhiteElo "2606"]
[BlackElo "2498"]
[TimeControl "180+2"]
[EndTime "14:55:02 PST"]
[Termination "Game drawn by repetition"]

1. e4 {[%clk 0:03:01.9]} 1... c5 {[%clk 0:03:01]} 2. Nf3 {[%clk 0:03:03.1]} 2...
d6 {[%clk 0:03:02.4]} 3. Bb5+ {[%clk 0:03:04]} 3... Nc6 {[%clk 0:03:02.8]} 4.
O-O {[%clk 0:03:04.3]} 4... g6 {[%clk 0:03:01.3]} 5. c3 {[%clk 0:03:04.5]} 5...
Bg7 {[%clk 0:03:02.1]} 6. d4 {[%clk 0:03:06.1]} 6... Bd7 {[%clk 0:03:00.2]} 7.
dxc5 {[%clk 0:02:44.4]} 7... dxc5 {[%clk 0:03:00.8]} 8. Be3 {[%clk 0:02:45.3]}
8... b6 {[%clk 0:02:55.6]} 9. h3 {[%clk 0:02:46.2]} 9... Nf6 {[%clk 0:02:45.6]}
10. Qa4 {[%clk 0:02:47.3]} 10... Qc7 {[%clk 0:02:42.9]} 11. Rd1 {[%clk
0:02:42.4]} 11... Rc8 {[%clk 0:02:31.7]} 12. e5 {[%clk 0:02:33.1]} 12... Ng8
{[%clk 0:01:53.3]} 13. Na3 {[%clk 0:02:29.6]} 13... Nh6 {[%clk 0:01:52.9]} 14.
e6 {[%clk 0:02:11.8]} 14... Bxe6 {[%clk 0:01:46.3]} 15. Ne5 {[%clk 0:01:54.1]}
15... Bxe5 {[%clk 0:01:39.1]} 16. Bxh6 {[%clk 0:01:54]} 16... f6 {[%clk
0:01:12.8]} 17. Nc4 {[%clk 0:01:50.8]} 17... Kf7 {[%clk 0:00:53]} 18. Bxc6
{[%clk 0:01:50.3]} 18... Qxc6 {[%clk 0:00:49.7]} 19. Nxe5+ {[%clk 0:01:51.7]}
19... fxe5 {[%clk 0:00:49.4]} 20. Qh4 {[%clk 0:01:48]} 20... Rcd8 {[%clk
0:00:37.1]} 21. Rxd8 {[%clk 0:01:42.4]} 21... Rxd8 {[%clk 0:00:37.2]} 22. Bg5
{[%clk 0:01:44.3]} 22... h5 {[%clk 0:00:33.1]} 23. Bxe7 {[%clk 0:01:45.1]} 23...
Rd2 {[%clk 0:00:11.9]} 24. Qf6+ {[%clk 0:01:44.7]} 24... Ke8 {[%clk 0:00:13.1]}
25. Bf8 {[%clk 0:01:46]} 25... Qd7 {[%clk 0:00:10.1]} 26. Kh2 {[%clk 0:01:37.3]}
26... Qf7 {[%clk 0:00:11.2]} 27. Qxe5 {[%clk 0:01:25.8]} 27... Kxf8 {[%clk
0:00:11.5]} 28. Re1 {[%clk 0:01:10.7]} 28... Qxf2 {[%clk 0:00:11.2]} 29. Qh8+
{[%clk 0:01:09.7]} 29... Ke7 {[%clk 0:00:11.3]} 30. Qg7+ {[%clk 0:01:11]} 30...
Qf7 {[%clk 0:00:12.6]} 31. Qe5 {[%clk 0:01:09.4]} 31... Rd6 {[%clk 0:00:10.6]}
32. Re2 {[%clk 0:00:58.6]} 32... Qf6 {[%clk 0:00:12]} 33. Qe3 {[%clk 0:01:00.2]}
33... g5 {[%clk 0:00:12]} 34. Rf2 {[%clk 0:01:00.4]} 34... Qg6 {[%clk
0:00:12.7]} 35. Qf3 {[%clk 0:01:00.2]} 35... Rd5 {[%clk 0:00:11.8]} 36. Qf8+
{[%clk 0:01:00.6]} 36... Kd7 {[%clk 0:00:12.4]} 37. Qb8 {[%clk 0:01:02.2]} 37...
Qe4 {[%clk 0:00:11.3]} 38. Qb7+ {[%clk 0:00:58]} 38... Kd6 {[%clk 0:00:12.4]}
39. Qb8+ {[%clk 0:00:59.6]} 39... Ke7 {[%clk 0:00:13.8]} 40. Qb7+ {[%clk
0:00:57.5]} 40... Bd7 {[%clk 0:00:15.3]} 41. Qa8 {[%clk 0:00:19.9]} 41... Qe5+
{[%clk 0:00:16.1]} 42. g3 {[%clk 0:00:21.6]} 42... h4 {[%clk 0:00:17]} 43. Qf8+
{[%clk 0:00:22.5]} 43... Ke6 {[%clk 0:00:18.2]} 44. Qh6+ {[%clk 0:00:13.5]}
44... Ke7 {[%clk 0:00:16.1]} 45. Qf8+ {[%clk 0:00:13.3]} 45... Ke6 {[%clk
0:00:17.3]} 46. Qh6+ {[%clk 0:00:14.8]} 46... Ke7 {[%clk 0:00:17.5]} 47. Qf8+
{[%clk 0:00:13.9]} 1/2-1/2

[Event "*** Titled Tuesday Blitz"]
[Site "Chess.com"]
[Date "2020.01.07"]
[Round "8"]
[White "Sven_Tica"]
[Black "Terao90"]
[Result "1-0"]
[WhiteElo "2670"]
[BlackElo "2456"]
[TimeControl "180+2"]
[EndTime "14:55:12 PST"]
[Termination "Sven_Tica won by resignation"]

1. d4 {[%clk 0:03:01.9]} 1... Nf6 {[%clk 0:03:00.7]} 2. c4 {[%clk 0:03:02.3]}
2... e6 {[%clk 0:03:01.3]} 3. g3 {[%clk 0:03:03.8]} 3... d5 {[%clk 0:03:02.1]}
4. Bg2 {[%clk 0:03:05.5]} 4... Bb4+ {[%clk 0:03:02.9]} 5. Bd2 {[%clk 0:03:06.5]}
5... Be7 {[%clk 0:03:03.5]} 6. Nf3 {[%clk 0:03:08.2]} 6... O-O {[%clk
0:03:04.7]} 7. O-O {[%clk 0:03:09.9]} 7... c6 {[%clk 0:03:05.9]} 8. Qc2 {[%clk
0:03:09]} 8... b6 {[%clk 0:03:06.5]} 9. Bf4 {[%clk 0:03:08.9]} 9... Nbd7 {[%clk
0:03:04.4]} 10. Rd1 {[%clk 0:03:07.8]} 10... Bb7 {[%clk 0:02:55.9]} 11. Ne5
{[%clk 0:03:08.8]} 11... Nh5 {[%clk 0:02:54.7]} 12. Bd2 {[%clk 0:03:07.7]} 12...
Nhf6 {[%clk 0:02:54]} 13. cxd5 {[%clk 0:03:05]} 13... cxd5 {[%clk 0:02:52.1]}
14. Nc6 {[%clk 0:03:06.3]} 14... Bxc6 {[%clk 0:02:49.8]} 15. Qxc6 {[%clk
0:03:08.2]} 15... Rc8 {[%clk 0:02:48.4]} 16. Qb5 {[%clk 0:03:07.4]} 16... Qc7
{[%clk 0:02:28.9]} 17. Nc3 {[%clk 0:02:55.8]} 17... Qb7 {[%clk 0:02:27.1]} 18.
a4 {[%clk 0:02:39.1]} 18... a6 {[%clk 0:02:27.6]} 19. Qb3 {[%clk 0:02:40.2]}
19... Ne4 {[%clk 0:02:17.1]} 20. Nxe4 {[%clk 0:02:28]} 20... dxe4 {[%clk
0:02:17.5]} 21. Rdc1 {[%clk 0:02:24.4]} 21... Nf6 {[%clk 0:02:14]} 22. Bg5
{[%clk 0:02:17.7]} 22... Nd5 {[%clk 0:01:59.9]} 23. Bxe7 {[%clk 0:02:18.3]}
23... Nxe7 {[%clk 0:02:01.8]} 24. e3 {[%clk 0:02:19.7]} 24... Rxc1+ {[%clk
0:01:43.2]} 25. Rxc1 {[%clk 0:02:18.6]} 25... Rc8 {[%clk 0:01:44.2]} 26. Rc4
{[%clk 0:01:51]} 26... Rxc4 {[%clk 0:00:47.6]} 27. Qxc4 {[%clk 0:01:51.8]} 27...
Nc8 {[%clk 0:00:46]} 28. Bf1 {[%clk 0:01:50.6]} 28... a5 {[%clk 0:00:43.4]} 29.
b4 {[%clk 0:01:29.2]} 29... axb4 {[%clk 0:00:38.9]} 30. Qxb4 {[%clk 0:01:29.9]}
30... Qc7 {[%clk 0:00:39.3]} 31. Kg2 {[%clk 0:01:24.9]} 31... Nd6 {[%clk
0:00:39.9]} 32. Ba6 {[%clk 0:01:20.6]} 32... Qc6 {[%clk 0:00:35.9]} 33. Be2
{[%clk 0:01:10.9]} 33... g6 {[%clk 0:00:29.4]} 34. h4 {[%clk 0:01:11.3]} 34...
h5 {[%clk 0:00:30]} 35. Qa3 {[%clk 0:00:46.5]} 35... Kg7 {[%clk 0:00:30.5]} 36.
Qb2 {[%clk 0:00:47.2]} 36... Kg8 {[%clk 0:00:31.3]} 37. Qb3 {[%clk 0:00:47]}
37... Kg7 {[%clk 0:00:30.8]} 38. Qb2 {[%clk 0:00:47.8]} 38... Kg8 {[%clk
0:00:31.6]} 39. Bd1 {[%clk 0:00:49.5]} 39... Qc7 {[%clk 0:00:25.2]} 40. Bb3
{[%clk 0:00:49]} 40... Qc6 {[%clk 0:00:24.3]} 41. Qd2 {[%clk 0:00:44.7]} 41...
Nf5 {[%clk 0:00:09.5]} 42. d5 {[%clk 0:00:35.1]} 42... exd5 {[%clk 0:00:10.4]}
43. Qxd5 {[%clk 0:00:34.5]} 43... Qxd5 {[%clk 0:00:10.9]} 44. Bxd5 {[%clk
0:00:35.8]} 44... Nd6 {[%clk 0:00:12.4]} 45. Kf1 {[%clk 0:00:37.1]} 45... Kf8
{[%clk 0:00:13.5]} 46. Ke2 {[%clk 0:00:38.6]} 46... Ke7 {[%clk 0:00:13.2]} 47.
Kd2 {[%clk 0:00:39.9]} 47... Kf6 {[%clk 0:00:14.5]} 48. Kc3 {[%clk 0:00:40.4]}
48... Ke5 {[%clk 0:00:16.1]} 49. Bb3 {[%clk 0:00:41.4]} 49... f6 {[%clk
0:00:16.7]} 50. Kb4 {[%clk 0:00:40]} 50... g5 {[%clk 0:00:18]} 51. Bd1 {[%clk
0:00:38]} 51... gxh4 {[%clk 0:00:17]} 52. gxh4 {[%clk 0:00:39.3]} 52... Nf5
{[%clk 0:00:18.5]} 53. Bxh5 {[%clk 0:00:38.7]} 53... Nxh4 {[%clk 0:00:20.4]} 54.
Kb5 {[%clk 0:00:40.2]} 54... Nf5 {[%clk 0:00:16.8]} 55. Kxb6 {[%clk 0:00:41.2]}
55... Nd6 {[%clk 0:00:18.4]} 56. Be2 {[%clk 0:00:42.3]} 1-0

[Event "*** Titled Tuesday Blitz"]
[Site "Chess.com"]
[Date "2020.01.07"]
[Round "8"]
[White "attack2mateU"]
[Black "lupta_robin"]
[Result "1-0"]
[WhiteElo "2688"]
[BlackElo "2536"]
[TimeControl "180+2"]
[EndTime "14:55:25 PST"]
[Termination "attack2mateU won by resignation"]

1. e4 {[%clk 0:03:01.9]} 1... g6 {[%clk 0:03:00.4]} 2. d4 {[%clk 0:03:02.4]}
2... Nf6 {[%clk 0:02:59.5]} 3. e5 {[%clk 0:03:01.7]} 3... Nh5 {[%clk 0:02:59.7]}
4. Nc3 {[%clk 0:02:58.9]} 4... d6 {[%clk 0:02:57.4]} 5. exd6 {[%clk 0:02:56.5]}
5... Qxd6 {[%clk 0:02:55.5]} 6. Be2 {[%clk 0:02:50.5]} 6... Nf6 {[%clk
0:02:48.9]} 7. Nb5 {[%clk 0:02:47.9]} 7... Qd8 {[%clk 0:02:33.2]} 8. c4 {[%clk
0:02:39.9]} 8... c6 {[%clk 0:02:28.8]} 9. Nc3 {[%clk 0:02:40.6]} 9... Bg7 {[%clk
0:02:29.2]} 10. h3 {[%clk 0:02:41.2]} 10... O-O {[%clk 0:02:27.7]} 11. Nf3
{[%clk 0:02:42.8]} 11... Bf5 {[%clk 0:02:18.2]} 12. Qb3 {[%clk 0:02:42.1]} 12...
Qb6 {[%clk 0:02:15.4]} 13. Be3 {[%clk 0:02:39.2]} 13... Ne4 {[%clk 0:02:06.5]}
14. O-O {[%clk 0:02:02.2]} 14... Nd7 {[%clk 0:01:55.5]} 15. g4 {[%clk
0:01:53.4]} 15... Nxc3 {[%clk 0:01:28.9]} 16. bxc3 {[%clk 0:01:55.3]} 16... Be6
{[%clk 0:01:04.9]} 17. Ng5 {[%clk 0:01:51.6]} 17... c5 {[%clk 0:00:53.4]} 18. d5
{[%clk 0:01:48.8]} 18... Bxd5 {[%clk 0:00:36.1]} 19. cxd5 {[%clk 0:01:47.5]}
19... Qxb3 {[%clk 0:00:35.8]} 20. axb3 {[%clk 0:01:48.1]} 20... Bxc3 {[%clk
0:00:36.3]} 21. Rac1 {[%clk 0:01:19.6]} 21... Bb4 {[%clk 0:00:34.5]} 22. Bb5
{[%clk 0:01:16.3]} 22... Nf6 {[%clk 0:00:20.2]} 23. Bxc5 {[%clk 0:01:15.3]}
23... Nxd5 {[%clk 0:00:19]} 24. Bxb4 {[%clk 0:01:15.3]} 24... Nxb4 {[%clk
0:00:19.9]} 25. Rc7 {[%clk 0:01:15.9]} 25... a6 {[%clk 0:00:13.8]} 26. Bc4
{[%clk 0:01:16.5]} 26... b5 {[%clk 0:00:13.5]} 27. Bxf7+ {[%clk 0:01:12.6]}
27... Rxf7 {[%clk 0:00:14.1]} 28. Nxf7 {[%clk 0:01:13.7]} 28... Kxf7 {[%clk
0:00:15.2]} 29. Re1 {[%clk 0:01:10.5]} 29... Re8 {[%clk 0:00:11.9]} 30. Ra7
{[%clk 0:01:06.6]} 30... Nd3 {[%clk 0:00:06.6]} 31. Re3 {[%clk 0:01:05.8]} 31...
Nc5 {[%clk 0:00:05.4]} 32. b4 {[%clk 0:01:06.5]} 32... Ne6 {[%clk 0:00:03.8]}
33. Rxa6 {[%clk 0:01:06]} 33... Nd4 {[%clk 0:00:03.4]} 34. Re4 {[%clk
0:00:58.1]} 34... e5 {[%clk 0:00:04.4]} 35. Ra7+ {[%clk 0:00:58.8]} 35... Kf6
{[%clk 0:00:04.1]} 36. Rxh7 {[%clk 0:00:58.9]} 36... Rc8 {[%clk 0:00:04.3]} 37.
Rb7 {[%clk 0:00:52.2]} 37... Rc4 {[%clk 0:00:04.8]} 38. Rb6+ {[%clk 0:00:53.1]}
38... Kg5 {[%clk 0:00:04]} 39. Rxe5+ {[%clk 0:00:46.6]} 39... Kf4 {[%clk
0:00:05.3]} 40. Rc5 {[%clk 0:00:40.3]} 40... Nf3+ {[%clk 0:00:05.4]} 41. Kf1
{[%clk 0:00:28.7]} 41... Rxb4 {[%clk 0:00:06]} 42. Rbxb5 {[%clk 0:00:29]} 42...
Re4 {[%clk 0:00:06]} 43. Rc1 {[%clk 0:00:21.8]} 43... Nd4 {[%clk 0:00:06.3]} 44.
Rb4 {[%clk 0:00:19.3]} 44... g5 {[%clk 0:00:05.7]} 45. Rd1 {[%clk 0:00:19.8]}
45... Ke5 {[%clk 0:00:04.9]} 46. Rbxd4 {[%clk 0:00:19.2]} 1-0

[Event "*** Titled Tuesday Blitz"]
[Site "Chess.com"]
[Date "2020.01.07"]
[Round "8"]
[White "HouseOfDurin"]
[Black "luis-garcia"]
[Result "1-0"]
[WhiteElo "2130"]
[BlackElo "2126"]
[TimeControl "180+2"]
[EndTime "14:55:33 PST"]
[Termination "HouseOfDurin won by resignation"]

1. d4 {[%clk 0:03:01.9]} 1... d5 {[%clk 0:03:00.1]} 2. Bg5 {[%clk 0:03:03]} 2...
Nd7 {[%clk 0:02:59.5]} 3. f3 {[%clk 0:02:55.1]} 3... Ngf6 {[%clk 0:03:00.4]} 4.
c4 {[%clk 0:02:54.9]} 4... c6 {[%clk 0:02:38.1]} 5. cxd5 {[%clk 0:02:51.5]} 5...
cxd5 {[%clk 0:02:40]} 6. Nc3 {[%clk 0:02:50.5]} 6... e6 {[%clk 0:02:33.4]} 7. e4
{[%clk 0:02:51]} 7... Be7 {[%clk 0:02:25.1]} 8. e5 {[%clk 0:02:31.9]} 8... Ng8
{[%clk 0:02:23]} 9. Be3 {[%clk 0:02:28.7]} 9... Bg5 {[%clk 0:02:05.4]} 10. f4
{[%clk 0:02:26.8]} 10... Be7 {[%clk 0:02:02.1]} 11. Rc1 {[%clk 0:02:20.1]} 11...
Bb4 {[%clk 0:01:59.6]} 12. Ne2 {[%clk 0:02:15.4]} 12... Ne7 {[%clk 0:01:59.6]}
13. Qa4 {[%clk 0:01:49.7]} 13... Qa5 {[%clk 0:01:51.8]} 14. Qxa5 {[%clk
0:01:45]} 14... Bxa5 {[%clk 0:01:53.7]} 15. a3 {[%clk 0:01:36.9]} 15... Nf5
{[%clk 0:01:52.4]} 16. Bf2 {[%clk 0:01:27.6]} 16... h5 {[%clk 0:01:52.2]} 17. g3
{[%clk 0:01:13.7]} 17... O-O {[%clk 0:01:49]} 18. Bh3 {[%clk 0:01:04.1]} 18...
Bxc3+ {[%clk 0:01:41.7]} 19. Rxc3 {[%clk 0:00:51.9]} 19... Nb6 {[%clk
0:01:42.8]} 20. Bxf5 {[%clk 0:00:51.6]} 20... exf5 {[%clk 0:01:43.6]} 21. b3
{[%clk 0:00:43.4]} 21... Be6 {[%clk 0:01:42.8]} 22. Kd2 {[%clk 0:00:43.9]} 22...
Rfc8 {[%clk 0:01:43.5]} 23. Rhc1 {[%clk 0:00:45.4]} 23... Rxc3 {[%clk
0:01:42.8]} 24. Rxc3 {[%clk 0:00:41.7]} 24... Rc8 {[%clk 0:01:43.5]} 25. Rc5
{[%clk 0:00:35.6]} 25... Na8 {[%clk 0:01:17.8]} 26. Nc3 {[%clk 0:00:29.9]} 26...
Rxc5 {[%clk 0:01:05.8]} 27. dxc5 {[%clk 0:00:31.8]} 27... Nc7 {[%clk 0:01:06.7]}
28. b4 {[%clk 0:00:23.2]} 28... a6 {[%clk 0:01:06.7]} 29. a4 {[%clk 0:00:20.2]}
29... f6 {[%clk 0:01:01.3]} 30. exf6 {[%clk 0:00:20.3]} 30... gxf6 {[%clk
0:01:02.3]} 31. Kd3 {[%clk 0:00:19.7]} 31... Kf7 {[%clk 0:01:03]} 32. Kd4 {[%clk
0:00:20.3]} 32... Kg6 {[%clk 0:00:44.5]} 33. b5 {[%clk 0:00:19.8]} 33... axb5
{[%clk 0:00:44.4]} 34. axb5 {[%clk 0:00:21.3]} 34... Kf7 {[%clk 0:00:21.2]} 35.
b6 {[%clk 0:00:21.5]} 35... Na6 {[%clk 0:00:18]} 36. Nxd5 {[%clk 0:00:22.6]}
36... Nb4 {[%clk 0:00:19]} 37. Nxb4 {[%clk 0:00:21.5]} 37... Ke7 {[%clk
0:00:10.5]} 38. c6 {[%clk 0:00:18.1]} 38... bxc6 {[%clk 0:00:10.8]} 39. Nxc6+
{[%clk 0:00:20]} 39... Kd6 {[%clk 0:00:11.8]} 40. Nb4 {[%clk 0:00:18]} 40... Bc8
{[%clk 0:00:11.6]} 41. Kc4 {[%clk 0:00:15.6]} 41... Bb7 {[%clk 0:00:11.5]} 42.
Bd4 {[%clk 0:00:16.4]} 42... Ke6 {[%clk 0:00:12]} 43. Kc5 {[%clk 0:00:16.6]}
43... Kf7 {[%clk 0:00:12.1]} 44. Kd6 {[%clk 0:00:15.6]} 44... Kg6 {[%clk
0:00:13.3]} 45. Kc7 {[%clk 0:00:16]} 45... Be4 {[%clk 0:00:13.6]} 46. b7 {[%clk
0:00:16.4]} 46... Bxb7 {[%clk 0:00:14.5]} 47. Kxb7 {[%clk 0:00:18.3]} 47... h4
{[%clk 0:00:16.2]} 48. gxh4 {[%clk 0:00:19.1]} 48... Kh5 {[%clk 0:00:17.7]} 49.
Bf2 {[%clk 0:00:20.2]} 49... Kg4 {[%clk 0:00:18.8]} 50. Bg3 {[%clk 0:00:22.1]}
50... Kh5 {[%clk 0:00:19.3]} 51. Nd5 {[%clk 0:00:23.1]} 51... Kg6 {[%clk
0:00:20.4]} 52. Kc7 {[%clk 0:00:24.4]} 52... Kf7 {[%clk 0:00:21.8]} 53. Kd6
{[%clk 0:00:25.7]} 53... Kg7 {[%clk 0:00:22.2]} 54. Ke6 {[%clk 0:00:26.9]} 54...
Kg6 {[%clk 0:00:24.1]} 55. Nxf6 {[%clk 0:00:27.5]} 55... Kh6 {[%clk 0:00:24.8]}
56. Nd5 {[%clk 0:00:26.1]} 56... Kg7 {[%clk 0:00:26.7]} 57. Ne7 {[%clk
0:00:26.3]} 57... Kh6 {[%clk 0:00:27.3]} 58. Nxf5+ {[%clk 0:00:27.4]} 58... Kh7
{[%clk 0:00:29]} 59. Ne3 {[%clk 0:00:28.5]} 59... Kg7 {[%clk 0:00:30.3]} 60. Kf5
{[%clk 0:00:30.2]} 60... Kf7 {[%clk 0:00:31.6]} 61. Kg5 {[%clk 0:00:31.3]} 61...
Kg7 {[%clk 0:00:32.9]} 62. f5 {[%clk 0:00:32.8]} 62... Kh7 {[%clk 0:00:34.3]}
63. h5 {[%clk 0:00:34.3]} 63... Kg7 {[%clk 0:00:35.2]} 64. h6+ {[%clk
0:00:35.5]} 1-0